bitfinex-derivatives/quotes_BNBF0:USTF0_20250608
["timestamp","ask_amount","ask_price","bid_price","bid_amount"]
[1749399099901,1.646,652.66,652.09,2.28611893]
[1749399102107,1.646,652.66,652.1,2.28611893]
[1749399102308,1.646,652.66,652.09,2.28611893]
[1749399102508,1.646,652.66,652.08,2.28611893]
[1749399103209,1.646,652.66,652.06,2.28611893]
[1749399105608,1.646,652.66,652.05,2.28611893]
[1749399106609,1.646,652.66,652.04,2.28611893]
[1749399107815,1.646,652.66,652.06,2.28611893]
[1749399108012,1.646,652.66,652.08,2.28611893]
[1749399109112,1.646,652.66,652.07,2.28611893]
[1749399109811,1.646,652.66,652.08,2.28611893]
[1749399110715,1.646,652.66,652.06,2.28611893]
[1749399112515,1.646,652.66,652.07,2.28611893]
[1749399113511,1.646,652.66,652.09,2.28611893]
[1749399113816,1.646,652.66,652.14,2.28611893]
[1749399118111,1.646,652.66,652.16,2.28611893]
[1749399119316,1.646,652.66,652.23,2.28611893]
[1749399119916,1.646,652.66,652.21,2.28611893]
[1749399120819,1.646,652.66,652.23,2.28611893]
[1749399123024,1.646,652.66,652.22,2.28611893]
[1749399124026,1.646,652.66,652.23,2.28611893]
[1749399124519,1.646,652.66,652.22,2.28611893]
[1749399124724,1.646,652.66,652.23,2.28611893]
[1749399124924,1.646,652.66,652.22,2.28611893]
[1749399125120,1.646,652.66,652.23,2.28611893]
[1749399125331,1.646,652.66,652.22,2.28611893]
[1749399125725,1.646,652.66,652.23,2.28611893]
[1749399125924,1.646,652.66,652.22,2.28611893]
[1749399128228,0.26662887,652.67,652.22,2.28611893]
[1749399129027,0.26662887,652.67,652.24,2.28611893]
[1749399129727,0.26662887,652.67,652.35,2.28611893]
[1749399130430,0.26662887,652.67,651.93,3.82651496]
[1749399130431,0.26662887,652.67,652.34,2.28611893]
[1749399131731,1.195,652.66,652.33,2.28611893]
[1749399132628,1.195,652.66,652.32,2.28611893]
[1749399133127,1.195,652.66,652.34,2.28611893]
[1749399134525,1.195,652.66,652.33,2.28611893]
[1749399136129,1.195,652.66,652.35,2.28611893]
[1749399136334,1.195,652.66,652.34,2.28611893]
[1749399136634,1.195,652.66,652.33,2.28611893]
[1749399137032,0.26662887,652.67,652.32,2.28611893]
[1749399138433,0.26662887,652.67,652.33,2.28611893]
[1749399139130,0.26662887,652.67,652.32,2.28611893]
[1749399139633,0.26662887,652.67,652.33,2.28611893]
[1749399139831,0.26662887,652.67,652.32,2.28611893]
[1749399140334,0.26662887,652.67,652.33,2.28611893]
[1749399140930,1.741,652.66,652.33,2.28611893]
[1749399141231,1.741,652.66,652.19,2.28611893]
[1749399143737,1.741,652.66,652.18,2.28611893]
[1749399144038,1.741,652.66,652.07,2.28611893]
[1749399145036,1.741,652.66,652.11,2.28611893]
[1749399145534,1.741,652.66,652.1,2.28611893]
[1749399147941,1.741,652.66,652.09,2.28611893]
[1749399148137,1.741,652.66,652.1,2.28611893]
[1749399148437,1.741,652.66,652.09,2.28611893]
[1749399149542,1.741,652.66,652.14,2.28611893]
[1749399151540,1.741,652.66,652.15,2.28611893]
[1749399152941,1.741,652.66,652.17,2.28611893]
[1749399153340,1.741,652.66,652.23,2.28611893]
[1749399153639,1.741,652.66,651.62,0.26662887]
[1749399153640,1.741,652.66,652.24,2.28611893]
[1749399153939,1.741,652.66,652.33,2.28611893]
[1749399154140,1.741,652.66,652.32,2.28611893]
[1749399156739,1.741,652.66,652.34,2.28611893]
[1749399156942,1.741,652.66,652.36,2.28611893]
[1749399157845,1.741,652.66,652.24,2.28611893]
[1749399158746,1.741,652.66,652.23,2.28611893]
[1749399159440,1.741,652.66,652.24,2.28611893]
[1749399159643,1.741,652.66,652.23,2.28611893]
[1749399159842,1.741,652.66,652.24,2.28611893]
[1749399163451,1.741,652.66,652.25,2.28611893]
[1749399165549,1.741,652.66,652.26,2.28611893]
[1749399167054,1.741,652.66,652.27,2.28611893]
[1749399167751,1.741,652.66,652.28,2.28611893]
[1749399167951,1.741,652.66,652.36,2.28611893]
[1749399168550,1.741,652.66,652.37,2.28611893]
[1749399169052,1.741,652.66,651.62,0.26662887]
[1749399169254,1.741,652.66,651.62,0.57355622]
[1749399170658,1.741,652.66,652.39,2.28384926]
[1749399170958,1.741,652.66,652.37,2.28384926]
[1749399171459,1.741,652.66,652.39,2.28384926]
[1749399172157,1.741,652.66,652.38,2.28384926]
[1749399172655,1.741,652.66,652.39,2.28384926]
[1749399173655,1.741,652.66,652.4,2.28384926]
[1749399175863,1.741,652.66,652.37,2.28384926]
[1749399178465,1.741,652.66,652.36,2.28384926]
[1749399180062,0.26662887,652.67,652.36,2.28384926]
[1749399181164,0.26662887,652.67,652.37,2.28384926]
[1749399181865,0.26662887,652.67,652.36,2.28384926]
[1749399182065,0.26662887,652.67,652.37,2.28384926]
[1749399183161,0.26662887,652.67,652.3,2.28384926]
[1749399183965,1.427,652.66,652.3,2.28384926]
[1749399185264,1.427,652.66,652.29,2.28384926]
[1749399185766,1.427,652.66,652.3,2.28384926]
[1749399186263,1.427,652.66,652.29,2.28384926]
[1749399187068,1.427,652.66,652.3,2.28384926]
[1749399187466,1.427,652.66,652.29,2.28384926]
[1749399188367,1.427,652.66,652.3,2.28384926]
[1749399189272,1.427,652.66,652.29,2.28384926]
[1749399191077,1.427,652.66,652.3,2.28384926]
[1749399191476,1.427,652.66,652.29,2.28384926]
[1749399192173,1.427,652.66,652.26,2.28384926]
[1749399192871,1.427,652.66,652.24,2.28384926]
[1749399193074,1.427,652.66,652.27,2.28384926]
[1749399193973,1.427,652.66,652.28,2.28384926]
[1749399194777,1.427,652.66,652.27,2.28384926]
[1749399195074,1.427,652.66,652.26,2.28384926]
[1749399195276,1.427,652.66,652.23,2.28384926]
[1749399196478,1.427,652.66,652.22,2.28384926]
[1749399196880,1.427,652.66,652.23,2.28384926]
[1749399197884,1.427,652.66,652.21,2.28384926]
[1749399198082,1.427,652.66,652.2,2.28384926]
[1749399198879,1.427,652.66,652.21,2.28384926]
[1749399199480,1.427,652.66,652.2,2.28384926]
[1749399200877,0.26662887,652.67,652.2,2.28384926]
[1749399201481,0.26662887,652.67,652.21,2.28384926]
[1749399202081,0.26662887,652.67,651.68,3.80641543]
[1749399202082,0.26662887,652.67,652.24,2.28384926]
[1749399202882,0.26662887,652.67,652.25,2.28384926]
[1749399203586,0.26662887,652.67,652.24,2.28384926]
[1749399204184,1.599,652.66,652.24,2.28384926]
[1749399204689,1.599,652.66,652.25,2.28384926]
[1749399204885,1.599,652.66,652.21,2.28384926]
[1749399205187,1.599,652.66,652.24,2.28384926]
[1749399206992,1.599,652.66,652.23,2.28384926]
[1749399209494,1.599,652.66,652.22,2.28384926]
[1749399210193,1.599,652.66,652.23,2.28384926]
[1749399210794,1.599,652.66,652.22,2.28384926]
[1749399211891,1.599,652.66,652.17,2.28384926]
[1749399212094,1.599,652.66,652.18,2.28384926]
[1749399214094,1.599,652.66,652.05,2.28384926]
[1749399214798,1.599,652.66,652.06,2.28384926]
[1749399222005,1.599,652.66,652.07,2.28384926]
[1749399222502,1.599,652.66,652.06,2.28384926]
[1749399223306,1.599,652.66,652.07,2.28384926]
[1749399223707,1.599,652.66,652.06,2.28384926]
[1749399224007,1.599,652.66,652.17,2.28384926]
[1749399224304,1.599,652.66,652.1,2.28384926]
[1749399224806,1.599,652.66,652.11,2.28384926]
[1749399226006,1.599,652.66,651.62,0.57355622]
[1749399232808,1.599,652.66,651.63,3.80641543]
[1749399233710,1.599,652.66,651.62,4.37997165]
[1749399233914,1.599,652.66,651.62,0.57355622]
[1749399242120,0.26662887,652.67,651.62,0.57355622]
[1749399244723,1.532,652.66,651.62,0.57355622]
[1749399253928,1.532,652.66,651.62,4.37997165]
[1749399254422,1.532,652.66,651.62,0.57355622]
[1749399254926,1.532,652.66,651.62,4.37997165]
[1749399255428,1.532,652.66,651.62,0.57355622]
[1749399257026,1.532,652.66,651.79,3.80641543]
[1749399257527,1.532,652.66,651.8,3.80641543]
[1749399258430,1.532,652.66,651.85,3.80641543]
[1749399260233,1.532,652.66,651.91,3.80641543]
[1749399262036,1.532,652.66,651.9,3.80641543]
[1749399262832,1.532,652.66,651.82,3.80641543]
[1749399264230,1.532,652.66,651.83,3.80641543]
[1749399264733,1.532,652.66,651.76,3.80641543]
[1749399266032,1.532,652.66,651.77,3.80641543]
[1749399266434,1.532,652.66,651.76,3.80641543]
[1749399266937,1.532,652.66,651.77,3.80641543]
[1749399268739,1.532,652.66,651.67,3.80641543]
[1749399271039,1.532,652.66,651.62,0.57355622]
[1749399271342,1.532,652.66,652.12,2.28865612]
[1749399271536,1.532,652.66,652.11,2.28865612]
[1749399272241,1.532,652.66,651.62,0.57355622]
[1749399279540,0.26673923,652.44,651.65,0.26673923]
[1749399281143,0.26673923,652.44,651.65,4.07315466]
[1749399281844,0.26673923,652.44,651.69,3.80641543]
[1749399284449,0.26673923,652.44,651.7,3.80641543]
[1749399284848,0.26673923,652.44,651.71,3.80641543]
[1749399285346,0.26673923,652.44,651.74,3.80641543]
[1749399285748,0.26673923,652.44,651.75,3.80641543]
[1749399287147,0.26673923,652.44,651.77,3.80641543]
[1749399287550,0.26673923,652.44,651.85,3.80641543]
[1749399287950,0.26673923,652.44,651.87,3.80641543]
[1749399288848,0.26673923,652.44,651.86,3.80641543]
[1749399289252,0.26673923,652.44,651.89,3.80641543]
[1749399291754,0.26673923,652.44,652.32,2.28880303]
[1749399292054,1.847,652.43,652.32,2.28880303]
[1749399292750,1.847,652.43,652.3,2.28880303]
[1749399294051,1.847,652.43,652.31,2.28880303]
[1749399297053,1.847,652.43,652.32,2.28880303]
[1749399297351,1.847,652.43,651.89,3.80641543]
[1749399297352,1.847,652.43,652.31,2.28880303]
[1749399297557,1.847,652.43,652.32,2.28880303]
[1749399299957,1.847,652.43,652.28,2.28880303]
[1749399300853,1.847,652.43,652.29,2.28880303]
[1749399301158,1.847,652.43,652.28,2.28880303]
[1749399301457,1.847,652.43,652.29,2.28880303]
[1749399301756,1.847,652.43,652.28,2.28880303]
[1749399302460,1.847,652.43,652.29,2.28880303]
[1749399304464,1.847,652.43,652.28,2.28880303]
[1749399304759,1.847,652.43,652.27,2.28880303]
[1749399307161,1.847,652.43,652.26,2.28880303]
[1749399308463,1.847,652.43,652.27,2.28880303]
[1749399308666,1.847,652.43,652.25,2.28880303]
[1749399309868,1.847,652.43,652.27,2.28880303]
[1749399314565,1.847,652.43,652.23,2.28880303]
[1749399315267,1.847,652.43,652.24,2.28880303]
[1749399315569,1.847,652.43,651.7,3.80641543]
[1749399315570,1.847,652.43,652.23,2.28880303]
[1749399315871,1.847,652.43,652.24,2.28880303]
[1749399318373,1.847,652.43,652.26,2.28880303]
[1749399319175,1.847,652.43,652.27,2.28880303]
[1749399319670,1.847,652.43,652.26,2.28880303]
[1749399319871,1.847,652.43,651.77,3.80641543]
[1749399319872,1.847,652.43,652.25,2.28880303]
[1749399321976,1.847,652.43,652.26,2.28880303]
[1749399324282,1.847,652.43,652.32,2.28880303]
[1749399326383,1.847,652.43,652.31,2.28880303]
[1749399328480,1.847,652.43,652.32,2.28880303]
[1749399332581,1.847,652.43,651.9,3.80641543]
[1749399332582,1.847,652.43,652.3,2.28880303]
[1749399332884,0.26668302,652.5,652.29,2.28880303]
[1749399333985,0.26668302,652.5,652.27,2.28880303]
[1749399335084,0.26668302,652.5,652.22,2.28880303]
[1749399335385,0.26668302,652.5,652.21,2.28880303]
[1749399336185,0.26668302,652.5,652.22,2.28880303]
[1749399336386,1.357,652.49,652.22,2.28880303]
[1749399337285,1.357,652.49,652.21,2.28880303]
[1749399338989,1.357,652.49,652.16,2.28880303]
[1749399342393,1.357,652.49,652.17,2.28880303]
[1749399344293,1.357,652.49,652.18,2.28880303]
[1749399344894,1.357,652.49,652.2,2.28880303]
[1749399345096,1.357,652.49,652.21,2.28880303]
[1749399345498,1.357,652.49,652.2,2.28880303]
[1749399347195,1.357,652.49,652.21,2.28880303]
[1749399348801,1.357,652.49,652.29,2.28880303]
[1749399349697,1.357,652.49,652.28,2.28880303]
[1749399350499,1.357,652.49,652.27,2.28880303]
[1749399350797,1.357,652.49,652.26,2.28880303]
[1749399351002,1.357,652.49,652.27,2.28880303]
[1749399352300,1.357,652.49,652.28,2.28880303]
[1749399353398,1.357,652.49,652.27,2.28880303]
[1749399353601,1.357,652.49,652.28,2.28880303]
[1749399355203,1.357,652.49,652.26,2.28880303]
[1749399355401,1.357,652.49,652.25,2.28880303]
[1749399355604,1.357,652.49,652.26,2.28880303]
[1749399356400,1.357,652.49,652.25,2.28880303]
[1749399358310,1.357,652.49,652.22,2.28880303]
[1749399358710,1.357,652.49,652.23,2.28880303]
[1749399360709,1.357,652.49,652.17,2.28880303]
[1749399361212,1.357,652.49,652.16,2.28880303]
[1749399364211,1.357,652.49,652.15,2.28880303]
[1749399365213,1.357,652.49,652.16,2.28880303]
[1749399366317,1.357,652.49,652.17,2.28880303]
[1749399367217,1.357,652.49,652.16,2.28880303]
[1749399368013,1.357,652.49,652.18,2.28880303]
[1749399368215,1.357,652.49,652.17,2.28880303]
[1749399368517,1.357,652.49,652.18,2.28880303]
[1749399369116,1.357,652.49,652.17,2.28880303]
[1749399369318,1.357,652.49,652.18,2.28880303]
[1749399369820,1.357,652.49,652.14,2.28880303]
[1749399370421,1.357,652.49,652.17,2.28880303]
[1749399370721,1.357,652.49,652.18,2.28880303]
[1749399372216,1.357,652.49,652.19,2.28880303]
[1749399374824,1.357,652.49,652.2,2.28880303]
[1749399375420,1.357,652.49,652.19,2.28880303]
[1749399376324,1.357,652.49,652.18,2.28880303]
[1749399377126,1.357,652.49,652.19,2.28880303]
[1749399379828,1.357,652.49,652.23,2.28880303]
[1749399380025,1.357,652.49,652.24,2.28880303]
[1749399381124,1.357,652.49,652.26,2.28880303]
[1749399382130,1.357,652.49,652.24,2.28880303]
[1749399382332,1.357,652.49,652.21,2.28880303]
[1749399383526,0.26668302,652.5,652.21,2.28880303]
[1749399384529,1.06658813,652.68,652.21,2.28880303]
[1749399384731,1.06658813,652.67,652.21,2.28880303]
[1749399384932,1.06658813,652.66,652.21,2.28880303]
[1749399385231,1.06658813,652.65,652.2,2.28880303]
[1749399385433,1.12468964,652.86,652.21,2.28880303]
[1749399385633,1.06643633,652.85,652.21,2.28880303]
[1749399385830,1.06643633,652.84,652.21,2.28880303]
[1749399386033,1.06643633,652.83,652.21,2.28880303]
[1749399386332,1.06643633,652.82,652.22,2.28880303]
[1749399386530,1.06643633,652.81,652.22,2.28880303]
[1749399386829,1.06643633,652.8,652.22,2.28880303]
[1749399387034,1.06643633,652.79,652.23,2.28880303]
[1749399387235,1.06643633,652.78,652.23,2.28880303]
[1749399387534,1.52882348,653.0,652.23,2.28880303]
[1749399387535,2.35243633,652.77,652.23,2.28880303]
[1749399387730,1.06643633,652.76,652.23,2.28880303]
[1749399387929,1.06643633,652.75,652.23,2.28880303]
[1749399388132,1.06643633,652.74,652.23,2.28880303]
[1749399388334,1.286,652.77,652.23,2.28880303]
[1749399388335,1.06643633,652.73,652.23,2.28880303]
[1749399388634,1.06643633,652.72,652.23,2.28880303]
[1749399388833,0.26667382,652.61,652.23,2.28880303]
[1749399390746,0.26667382,652.61,652.2,2.28880303]
[1749399390939,1.07113481,652.6,652.09,2.28880303]
[1749399391239,1.07113481,652.59,652.08,2.28880303]
[1749399391443,1.07113481,652.58,652.08,2.28880303]
[1749399391640,0.26667382,652.61,652.07,2.28880303]
[1749399391941,1.07085224,652.6,652.04,2.28880303]
[1749399392140,0.26667382,652.61,652.04,2.28880303]
[1749399392141,1.07085224,652.59,652.04,2.28880303]
[1749399392343,1.07085224,652.58,652.04,2.28880303]
[1749399392543,1.07085224,652.57,652.03,2.28880303]
[1749399392741,1.07085224,652.56,652.03,2.28880303]
[1749399393046,1.07085224,652.55,652.01,2.28880303]
[1749399393347,1.07085224,652.54,652.01,2.28880303]
[1749399393544,1.07085224,652.53,652.01,2.28880303]
[1749399393741,0.26667382,652.61,652.0,2.28880303]
[1749399393946,1.07025184,652.6,652.0,2.28880303]
[1749399394144,1.07025184,652.59,651.99,2.28880303]
[1749399394345,1.07025184,652.58,651.98,2.28880303]
[1749399394541,1.07025184,652.57,651.98,2.28880303]
[1749399394746,1.07025184,652.56,651.97,2.28880303]
[1749399394944,1.07025184,652.55,651.97,2.28880303]
[1749399395141,1.07025184,652.54,651.97,2.28880303]
[1749399395442,1.07025184,652.53,651.97,2.28880303]
[1749399395646,0.26667382,652.61,651.97,2.28880303]
[1749399395841,0.26667382,652.61,651.62,0.30692735]
[1749399395842,1.0673237,652.6,651.98,2.28880303]
[1749399396045,1.0673237,652.59,651.98,2.28880303]
[1749399396341,1.0673237,652.58,651.97,2.28880303]
[1749399396546,1.0673237,652.57,651.96,2.28880303]
[1749399396745,1.0673237,652.56,651.95,2.28880303]
[1749399396943,1.0673237,652.55,651.95,2.28880303]
[1749399397144,1.0673237,652.54,652.03,2.28880303]
[1749399397341,1.0673237,652.53,651.99,2.28880303]
[1749399397641,1.0673237,652.52,651.97,2.28880303]
[1749399397946,1.0673237,652.51,651.97,2.28880303]
[1749399398242,1.0673237,652.5,651.96,2.28880303]
[1749399398444,1.0673237,652.49,651.96,2.28880303]
[1749399398642,1.0673237,652.48,651.95,2.28880303]
[1749399398846,0.26667382,652.61,651.95,2.28880303]
[1749399399047,1.3728468,652.6,651.95,2.28880303]
[1749399399343,1.37285149,652.59,651.95,2.28880303]
[1749399399543,1.37285619,652.58,651.94,2.28880303]
[1749399399746,1.37285619,652.58,651.48,3.80641543]
[1749399399747,1.37286089,652.57,651.95,2.28880303]
[1749399399946,1.37286089,652.57,651.48,3.80641543]
[1749399399947,1.06638036,652.56,651.96,2.28880303]
[1749399400145,1.06638036,652.55,651.95,2.28880303]
[1749399400442,1.06638036,652.54,651.95,2.28880303]
[1749399400640,1.06638036,652.53,651.95,2.28880303]
[1749399400843,1.06638036,652.53,651.49,3.80641543]
[1749399400844,1.06638036,652.52,651.94,2.28880303]
[1749399401042,1.06638036,652.56,651.94,2.28880303]
[1749399401246,1.06638036,652.55,651.89,2.28880303]
[1749399401442,1.06638036,652.54,651.86,2.28880303]
[1749399401645,1.06638036,652.53,651.87,2.28880303]
[1749399401844,1.06638036,652.52,651.87,2.28880303]
[1749399402148,1.06638036,652.51,651.86,2.28880303]
[1749399402344,1.06638036,652.5,651.86,2.28880303]
[1749399402547,1.06638036,652.56,651.84,2.28880303]
[1749399402843,1.06638036,652.55,651.84,2.28880303]
[1749399403148,1.06638036,652.54,651.79,2.28880303]
[1749399403347,1.06638036,652.53,651.79,2.28880303]
[1749399403648,1.06638036,652.52,651.78,2.28880303]
[1749399403944,1.06638036,652.51,651.78,2.28880303]
[1749399404143,1.06638036,652.5,651.78,2.28880303]
[1749399404447,1.06638036,652.49,651.78,2.28880303]
[1749399404649,1.06638036,652.56,651.77,2.28880303]
[1749399404945,1.06638036,652.55,651.77,2.28880303]
[1749399405145,1.06638036,652.54,651.77,2.28880303]
[1749399405344,1.06638036,652.53,651.77,2.28880303]
[1749399405545,1.37288437,652.52,651.77,2.28880303]
[1749399405749,0.30650401,652.52,651.76,2.28880303]
[1749399406749,0.30650401,652.52,651.75,2.28880303]
[1749399407649,0.30650401,652.52,651.74,2.28880303]
[1749399409148,0.30650401,652.52,651.78,2.28880303]
[1749399409650,0.30650401,652.52,651.77,2.28880303]
[1749399410855,0.30650401,652.52,651.76,2.28880303]
[1749399411354,0.30650401,652.52,651.75,2.28880303]
[1749399411548,0.30650401,652.52,651.76,2.28880303]
[1749399411750,0.30650401,652.52,651.75,2.28880303]
[1749399413755,0.30650401,652.52,651.74,2.28880303]
[1749399414654,0.30650401,652.52,651.73,2.28880303]
[1749399415052,0.30650401,652.52,651.74,2.28880303]
[1749399415758,0.30650401,652.52,651.73,2.28880303]
[1749399417257,0.30650401,652.52,651.7,2.28880303]
[1749399417557,0.30650401,652.52,651.71,2.28880303]
[1749399417752,0.30650401,652.52,651.7,2.28880303]
[1749399417955,0.30650401,652.52,651.68,2.28880303]
[1749399418758,0.30650401,652.52,651.67,2.28880303]
[1749399418960,0.30650401,652.52,651.69,2.28880303]
[1749399421259,0.30650401,652.52,651.7,2.28880303]
[1749399421662,0.30650401,652.52,651.69,2.28880303]
[1749399421962,0.30650401,652.52,651.71,2.28880303]
[1749399424762,0.30650401,652.52,651.7,2.28880303]
[1749399425263,1.331,652.51,651.7,2.28880303]
[1749399427167,1.331,652.51,651.42,0.26677399]
[1749399427168,1.331,652.51,651.71,2.28880303]
[1749399427560,1.331,652.51,651.42,0.26677399]
[1749399429366,2.39738036,652.51,651.42,0.26677399]
[1749399429567,1.06638036,652.5,651.42,0.26677399]
[1749399429766,1.331,652.51,651.42,0.26677399]
[1749399434373,1.06638036,652.5,651.42,0.26677399]
[1749399434570,1.37289846,652.49,651.31,2.28880303]
[1749399434774,1.06638036,652.48,651.35,0.26685479]
[1749399435174,1.06638036,652.47,651.35,0.26685479]
[1749399435471,1.06638036,652.48,651.35,0.26685479]
[1749399435670,1.06638036,652.47,651.35,0.26685479]
[1749399435874,1.06638036,652.46,651.35,0.26685479]
[1749399436170,1.06638036,652.48,651.35,0.26685479]
[1749399436373,1.06638036,652.47,651.35,0.26685479]
[1749399436570,1.06638036,652.46,651.35,0.26685479]
[1749399436772,1.06638036,652.48,651.35,0.26685479]
[1749399436975,1.06638036,652.47,651.35,0.26685479]
[1749399437271,1.06638036,652.46,651.35,0.26685479]
[1749399437475,0.3065181,652.49,651.51,2.28880303]
[1749399438676,0.3065181,652.49,651.53,2.28880303]
[1749399439577,0.3065181,652.49,651.54,2.28880303]
[1749399439874,0.3065181,652.49,651.53,2.28880303]
[1749399440579,0.3065181,652.49,651.54,2.28880303]
[1749399441577,0.3065181,652.49,651.55,2.28880303]
[1749399441978,0.3065181,652.49,651.64,2.28880303]
[1749399442882,0.3065181,652.49,651.65,2.28880303]
[1749399443281,0.3065181,652.49,651.69,2.28880303]
[1749399443478,0.3065181,652.49,651.67,2.28880303]
[1749399443781,0.3065181,652.49,651.68,2.28880303]
[1749399444180,0.3065181,652.49,651.7,2.28880303]
[1749399444380,0.3065181,652.49,651.72,2.28880303]
[1749399444782,0.3065181,652.49,651.74,2.28880303]
[1749399444980,0.3065181,652.49,651.73,2.28880303]
[1749399445179,0.3065181,652.49,651.72,2.28880303]
[1749399445884,0.3065181,652.49,651.73,2.28880303]
[1749399446584,0.3065181,652.49,651.74,2.28880303]
[1749399447786,1.06638036,652.48,651.73,2.28880303]
[1749399448084,0.3065275,652.47,651.73,2.28880303]
[1749399448481,0.3065275,652.47,651.74,2.28880303]
[1749399448685,1.06638036,652.46,651.75,2.28880303]
[1749399448883,0.30653689,652.45,651.75,2.28880303]
[1749399449581,1.06638036,652.44,651.73,2.28880303]
[1749399449785,1.06638036,652.43,651.74,2.28880303]
[1749399449985,0.30653689,652.45,651.74,2.28880303]
[1749399449986,1.06638036,652.44,651.74,2.28880303]
[1749399450187,1.06638036,652.43,651.74,2.28880303]
[1749399450486,1.06638036,652.44,651.74,2.28880303]
[1749399450684,1.06638036,652.43,651.74,2.28880303]
[1749399450882,1.06638036,652.42,651.75,2.28880303]
[1749399451086,1.06638036,652.41,651.75,2.28880303]
[1749399451287,1.06638036,652.44,651.75,2.28880303]
[1749399451582,1.06638036,652.43,651.76,2.28880303]
[1749399451786,1.06638036,652.42,651.77,2.28880303]
[1749399451984,1.06638036,652.41,651.77,2.28880303]
[1749399452284,1.06638036,652.4,651.77,2.28880303]
[1749399452587,1.06638036,652.39,651.78,2.28880303]
[1749399452785,1.06638036,652.38,651.78,2.28880303]
[1749399452986,1.06638036,652.37,651.78,2.28880303]
[1749399453189,1.06638036,652.44,651.78,2.28880303]
[1749399453385,1.06638036,652.43,651.79,2.28880303]
[1749399453589,1.06638036,652.42,651.78,2.28880303]
[1749399453786,1.06638036,652.41,651.78,2.28880303]
[1749399453986,1.06638036,652.4,651.78,2.28880303]
[1749399454193,1.06638036,652.39,651.78,2.28880303]
[1749399454493,1.06638036,652.38,651.77,2.28880303]
[1749399454693,1.06638036,652.37,651.78,2.28880303]
[1749399454894,1.06638036,652.36,651.78,2.28880303]
[1749399455193,1.06638036,652.35,651.78,2.28880303]
[1749399455390,1.06638036,652.34,651.77,2.28880303]
[1749399455591,1.06638036,652.33,651.77,2.28880303]
[1749399455895,0.30653689,652.45,651.78,2.28880303]
[1749399456089,1.05329975,652.44,651.78,2.28880303]
[1749399456291,1.35984604,652.43,651.78,2.28880303]
[1749399456590,1.35985074,652.42,651.79,2.28880303]
[1749399456791,1.05329975,652.41,651.79,2.28880303]
[1749399456991,1.05329975,652.4,651.79,2.28880303]
[1749399457190,1.05329975,652.39,651.79,2.28880303]
[1749399457393,1.05329975,652.38,651.79,2.28880303]
[1749399457595,1.05329975,652.37,651.8,2.28880303]
[1749399457795,1.05329975,652.36,651.8,2.28880303]
[1749399457994,1.05329975,652.35,651.8,2.28880303]
[1749399458195,1.05329975,652.34,651.8,2.28880303]
[1749399458397,1.05329975,652.33,651.8,2.28880303]
[1749399458594,1.05329975,652.32,651.8,2.28880303]
[1749399458795,0.30655099,652.42,651.81,2.28880303]
[1749399458996,1.05257861,652.41,651.81,2.28880303]
[1749399459193,1.359139,652.4,651.81,2.28880303]
[1749399459497,1.05257861,652.39,651.84,2.28880303]
[1749399459695,1.05257861,652.38,651.84,2.28880303]
[1749399459896,1.05257861,652.37,651.84,2.28880303]
[1749399460091,1.05257861,652.36,651.84,2.28880303]
[1749399460298,1.05257861,652.35,651.84,2.28880303]
[1749399460493,1.05257861,652.34,651.84,2.28880303]
[1749399460699,1.05257861,652.33,651.84,2.28880303]
[1749399460899,1.05257861,652.32,651.84,2.28880303]
[1749399461100,0.30656039,652.4,651.75,2.28880303]
[1749399461298,1.05227409,652.39,651.76,2.28880303]
[1749399461495,1.05227409,652.38,651.76,2.28880303]
[1749399461698,1.05227409,652.37,651.76,2.28880303]
[1749399461998,1.05227409,652.36,651.77,2.28880303]
[1749399462196,1.05227409,652.35,651.77,2.28880303]
[1749399462397,1.708,652.35,651.77,2.28880303]
[1749399462593,1.708,652.35,651.78,2.28880303]
[1749399463400,1.708,652.35,651.79,2.28880303]
[1749399463697,1.708,652.35,651.8,2.28880303]
[1749399463899,1.708,652.35,651.81,2.28880303]
[1749399464396,1.708,652.35,651.84,2.28880303]
[1749399465399,1.708,652.35,651.83,2.28880303]
[1749399465800,1.708,652.35,651.84,2.28880303]
[1749399466495,1.708,652.35,651.82,2.28880303]
[1749399466698,1.708,652.35,651.83,2.28880303]
[1749399467399,1.708,652.35,651.97,2.28880303]
[1749399467699,1.708,652.35,651.96,2.28880303]
[1749399468097,1.708,652.35,651.91,2.28880303]
[1749399471906,1.708,652.35,651.9,2.28880303]
[1749399472504,1.708,652.35,651.35,3.80641543]